[Event "1000GM Schev-A January 2024"]
[Site "Sunnyvale"]
[Date "2024.01.21"]
[Round "3.1"]
[White "Jasinski, Alexander"]
[Black "Ramirez, Carlos"]
[Result "0-1"]
[ECO "C01"]
[WhiteElo "1951"]
[BlackElo "2190"]
[Annotator "RC"]
[PlyCount "132"]
[EventDate "2024.01.20"]
[EventType "schev"]
[EventCountry "USA"]
[SourceTitle "playchess.com"]
[Source "ChessBase"]
[SourceQuality "1"]
[TimeControl "5400+30"]

1. e4 {[%emt 1:31:00]} e6 {[%emt 0:02:52]} 2. d4 {[%emt 0:00:00]} d5 {[%emt 0:01:02]} 3. exd5 {[%emt 0:00:00]} exd5 {[%emt 0:00:02]} 4. Bd3 {[%emt 0:00:00]} Bd6 {[%emt 0:00:11]} 5. Nf3 {[%emt 0:00:00]} Nc6 {[%emt 0:00:24]} 6. O-O {[%emt 0:00:00]} Nge7 {[%emt 0:00:16]} 7. c3 {[%emt 0:00:00]} Bg4 {[%emt 0:00:30]} 8. Bg5 {[%emt 0:00:00]} Qd7 {[%emt 1:29:13]} 9. b4 {[%emt 0:00:00]} f6 {[%emt 0:00:30]} 10. Bh4 {[%emt 0:00:00]} Nf5 {[%emt 0:00:00]} 11. Bxf5 {[%emt 0:00:00]} Bxf5 {[%emt 0:00:00]} 12. Bg3 {[%emt 0:00:00]} Bxg3 {[%emt 0:00:00]} 13. fxg3 {[%emt 0:00:00]} O-O {[%emt 0:00:00]} 14. Nbd2 {[%emt 0:00:00]} Rae8 {[%emt 0:00:00]} 15. Nb3 {[%emt 0:00:00]} b6 {[%emt 0:00:00]} 16. Qd2 {[%emt 0:00:00]} Ne7 {[%emt 0:00:00]} 17. Rfe1 {[%emt 0:00:00]} Nc8 {[%emt 0:00:00]} 18. Rxe8 {[%emt 0:00:00]} Rxe8 {[%emt 0:00:00]} 19. a4 {[%emt 0:00:00]} Nd6 {[%emt 0:00:00]} 20. a5 {[%emt 0:00:00]} Nc4 {[%emt 0:00:00]} 21. Qf2 {[%emt 0:00:00]} Re3 {[%emt 0:00:00]} 22. Rc1 {[%emt 0:00:00]} Qe6 {[%emt 0:00:00]} 23. Re1 {[%emt 0:00:00]} Rxe1+ {[%emt 0:00:00]} 24. Qxe1 {[%emt 0:00:00]} Qxe1+ {[%emt 0:00:00]} 25. Nxe1 {[%emt 0:00:00]} Ne3 {[%emt 0:00:00]} 26. Nd2 b5 {[%emt 0:08:30]} 27. Nb3 {[%emt 0:13:00]} Nd1 {[%emt 0:00:00]} 28. Nc5 {[%emt 0:00:00]} Bc8 {[%emt 0:00:00]} 29. Ned3 {[%emt 0:00:00]} Kf7 {[%emt 0:00:00]} 30. Kf1 {[%emt 0:00:00]} Ke7 {[%emt 0:00:00]} 31. Ke2 {[%emt 0:00:00]} Nxc3+ {[%emt 0:00:00]} 32. Kd2 {[%emt 0:00:00]} Ne4+ 33. Nxe4 {[%emt 0:00:00]} dxe4 {[%emt 0:00:00]} 34. Nc5 {[%emt 0:00:00]} f5 {[%emt 0:00:00]} 35. g4 {[%emt 0:00:00]} g6 {[%emt 0:00:00]} 36. gxf5 {[%emt 0:00:00]} gxf5 {[%emt 0:00:00]} 37. g4 {[%emt 0:00:00]} fxg4 {[%emt 0:00:00]} 38. Nxe4 {[%emt 0:00:00]} Bf5 {[%emt 0:06:00]} 39. Nc3 {[%emt 0:00:00]} Bd7 {[%emt 0:00:00]} 40. Ke3 {[%emt 0:00:00]} h5 {[%emt 0:00:00]} 41. Kf4 {[%emt 0:00:00]} h4 {[%emt 0:00:00]} 42. Ne4 {[%emt 0:07:30]} g3 {[%emt 0:00:00]} 43. hxg3 {[%emt 0:00:00]} h3 {[%emt 0:00:00]} 44. Nf2 {[%emt 0:00:00]} h2 {[%emt 0:00:00]} 45. Ke5 {[%emt 0:00:00]} Bh3 {[%emt 0:00:00]} 46. Kd5 {[%emt 0:00:00]} Kd7 {[%emt 0:00:00]} 47. Kc5 {[%emt 0:00:00]} a6 {[%emt 0:00:00]} 48. d5 {[%emt 0:00:00]} Bg2 {[%emt 0:00:00]} 49. g4 {[%emt 0:00:00]} h1=Q {[%emt 0:05:30]} 50. Nxh1 {[%emt 0:04:00]} Bxh1 {[%emt 0:00:00]} 51. g5 {[%emt 0:00:00]} Be4 {[%emt 0:00:00]} 52. Kd4 {[%emt 0:00:00]} Bb1 {[%emt 0:00:00]} 53. Ke5 {[%emt 0:00:00]} Ke7 {[%emt 0:00:00]} 54. d6+ {[%emt 0:00:00]} cxd6+ {[%emt 0:00:00]} 55. Kd5 {[%emt 0:00:00]} Kd7 {[%emt 0:00:00]} 56. Kd4 {[%emt 0:00:00]} Ke6 {[%emt 0:00:00]} 57. g6 {[%emt 0:00:00]} Bxg6 {[%emt 0:04:00]} 58. Kc3 {[%emt 0:04:00]} Kd5 {[%emt 0:00:00]} 59. Kb3 {[%emt 0:00:00]} Kd4 {[%emt 0:00:00]} 60. Ka3 {[%emt 0:00:00]} Kc3 {[%emt 0:00:00]} 61. Ka2 {[%emt 0:00:00]} d5 {[%emt 0:00:00]} 62. Ka3 {[%emt 0:00:00]} d4 {[%emt 0:00:00]} 63. Ka2 {[%emt 0:00:00]} d3 {[%emt 0:00:00]} 64. Ka1 {[%emt 0:00:00]} d2 {[%emt 0:00:00]} 65. Ka2 {[%emt 0:00:00]} d1=Q {[%emt 0:00:00]} 66. Ka3 {[%emt 0:00:00]} Qa1# {[%emt 0:04:30]} 0-1

[Event "1000GM Schev-A January 2024"]
[Site "Sunnyvale"]
[Date "2024.01.21"]
[Round "3.2"]
[White "Yao, Hanchi"]
[Black "Diaz Cordoba, Fredy"]
[Result "1/2-1/2"]
[ECO "A40"]
[WhiteElo "1998"]
[BlackElo "2240"]
[Annotator "RC"]
[PlyCount "45"]
[EventDate "2024.01.20"]
[EventType "schev"]
[EventCountry "USA"]
[SourceTitle "playchess.com"]
[Source "ChessBase"]
[SourceQuality "1"]
[TimeControl "5400+30"]

1. d4 {[%emt 0:00:30]} Nc6 {[%emt 0:00:30]} 2. c4 {[%emt 0:00:30]} Nb8 {[%emt 0:00:01]} 3. Nc3 {[%emt 0:11:51]} Nc6 {[%emt 0:03:05]} 4. Nb1 {[%emt 0:00:00]} e5 {[%emt 0:00:08]} 5. d5 {[%emt 0:00:00]} Nce7 {[%emt 0:00:09]} 6. e4 {[%emt 0:00:00]} Ng6 {[%emt 0:00:10]} 7. Nc3 {[%emt 0:00:00]} Bc5 {[%emt 0:00:20]} 8. Nf3 {[%emt 0:00:00]} Nf6 {[%emt 0:00:10]} 9. Be2 {[%emt 0:00:00]} d6 {[%emt 0:02:51]} 10. b4 {[%emt 0:00:00]} Bb6 {[%emt 0:00:07]} 11. Be3 {[%emt 0:03:12]} O-O {[%emt 0:00:31]} 12. Bxb6 {[%emt 0:01:49]} axb6 {[%emt 0:01:17]} 13. g3 {[%emt 0:02:01]} h6 {[%emt 0:01:27]} 14. h4 {[%emt 0:02:17]} Bg4 {[%emt 0:04:00]} 15. Nd2 {[%emt 0:01:23]} h5 {[%emt 0:19:33]} 16. Nf1 {[%emt 0:03:54]} Ra3 {[%emt 0:08:38]} 17. Rc1 {[%emt 0:00:24]} c6 {[%emt 0:02:40]} 18. Ne3 {[%emt 0:03:03]} Bxe2 {[%emt 0:09:24]} 19. Qxe2 {[%emt 0:00:02]} Qd7 {[%emt 0:03:01]} 20. f3 {[%emt 0:04:20]} Rc8 {[%emt 0:02:11]} 21. O-O {[%emt 0:02:04]} Ne7 {[%emt 0:02:02]} 22. Qb2 {[%emt 0:10:06]} Rca8 {[%emt 0:03:32]} 23. Qd2 {[%emt 0:01:22]} 1/2-1/2

[Event "1000GM Schev-A January 2024"]
[Site "Sunnyvale"]
[Date "2024.01.21"]
[Round "3.4"]
[White "Moreno Trujillo, Alejandro"]
[Black "Chinni, Rishabh"]
[Result "1/2-1/2"]
[ECO "E11"]
[WhiteElo "2485"]
[BlackElo "1939"]
[Annotator "RC"]
[PlyCount "124"]
[EventDate "2024.01.20"]
[EventType "schev"]
[EventCountry "USA"]
[SourceTitle "playchess.com"]
[Source "ChessBase"]
[SourceQuality "1"]
[TimeControl "5400+30"]

1. d4 {[%emt 0:00:09]} Nf6 {[%emt 0:00:08]} 2. c4 {[%emt 0:00:16]} e6 {[%emt 0:00:02]} 3. Nf3 {[%emt 0:00:15]} Bb4+ {[%emt 0:00:10]} 4. Bd2 {[%emt 0:00:51]} a5 {[%emt 0:00:05]} 5. e3 {[%emt 0:00:33]} b6 {[%emt 0:01:27]} 6. a3 {[%emt 0:00:42]} Be7 {[%emt 0:00:33]} 7. Nc3 {[%emt 0:00:19]} Bb7 {[%emt 0:00:05]} 8. Bd3 {[%emt 0:00:56]} d6 {[%emt 0:00:34]} 9. O-O {[%emt 0:00:18]} Nbd7 {[%emt 0:00:31]} 10. e4 {[%emt 0:00:57]} e5 {[%emt 0:00:24]} 11. d5 {[%emt 0:00:48]} Nc5 {[%emt 0:03:11]} 12. Bc2 {[%emt 0:00:17]} a4 {[%emt 0:01:25]} 13. g3 {[%emt 0:03:48]} O-O {[%emt 0:04:29]} 14. Nh4 {[%emt 0:02:20]} Qd7 {[%emt 0:05:45]} 15. Nf5 {[%emt 0:04:36]} Bd8 {[%emt 0:07:36]} 16. f4 {[%emt 0:08:01]} g6 {[%emt 0:12:52]} 17. Nh6+ {[%emt 0:06:09]} Kg7 {[%emt 0:01:21]} 18. f5 {[%emt 0:00:22]} Be7 {[%emt 0:16:36]} 19. g4 {[%emt 0:02:49]} Ne8 {[%emt 0:06:27]} 20. g5 {[%emt 0:09:43]} f6 {[%emt 0:03:37]} 21. h4 {[%emt 0:02:54]} Qd8 {[%emt 0:03:06]} 22. Qg4 {[%emt 0:00:17]} Bc8 {[%emt 0:00:39]} 23. Rf3 {[%emt 0:00:51]} Kh8 {[%emt 0:05:49]} 24. h5 {[%emt 0:06:27]} gxf5 {[%emt 0:04:38]} 25. Nxf5 {[%emt 0:06:40]} fxg5 {[%emt 0:01:41]} 26. Nxe7 {[%emt 0:06:41]} Qxe7 {[%emt 0:02:30]} 27. Rxf8+ {[%emt 0:01:16]} Qxf8 {[%emt 0:00:05]} 28. Qxg5 {[%emt 0:00:16]} Bh3 {[%emt 0:03:27]} 29. Kh2 {[%emt 0:07:42]} Bf1 {[%emt 0:01:26]} 30. Be3 {[%emt 0:02:06]} Bxc4 {[%emt 0:01:53]} 31. Rg1 {[%emt 0:00:09]} Nf6 {[%emt 0:01:27]} 32. Qh4 {[%emt 0:03:27]} Qf7 {[%emt 0:01:17]} 33. Bg5 {[%emt 0:01:15]} Rf8 {[%emt 0:02:18]} 34. Rg2 {[%emt 0:06:45]} Bf1 {[%emt 0:01:20]} 35. Rg1 {[%emt 0:00:34]} Nxh5 {[%emt 0:01:43]} 36. Bd1 {[%emt 0:01:25]} Nf6 {[%emt 0:03:18]} 37. Rxf1 {[%emt 0:01:15]} Ng4+ {[%emt 0:00:08]} 38. Bxg4 {[%emt 0:00:03]} Qxf1 {[%emt 0:00:03]} 39. Bf5 {[%emt 0:00:22]} Rxf5 {[%emt 0:01:26]} 40. exf5 {[%emt 0:00:53]} Qxf5 {[%emt 0:00:04]} 41. Bf6+ {[%emt 0:00:26]} Kg8 {[%emt 0:00:04]} 42. Qg3+ {[%emt 0:00:54]} Qg6 {[%emt 0:00:11]} 43. Qxg6+ {[%emt 0:00:49]} hxg6 {[%emt 0:00:01]} 44. Bd8 {[%emt 0:00:08]} Nd3 {[%emt 0:02:24]} 45. Bxc7 {[%emt 0:01:03]} Nxb2 {[%emt 0:00:08]} 46. Bxd6 {[%emt 0:00:08]} Nc4 {[%emt 0:00:03]} 47. Bb4 {[%emt 0:00:12]} Kf7 {[%emt 0:00:59]} 48. Kg3 {[%emt 0:01:06]} Kf6 {[%emt 0:02:25]} 49. Ne4+ {[%emt 0:01:28]} Kf5 {[%emt 0:00:43]} 50. Kf3 {[%emt 0:00:40]} g5 {[%emt 0:00:42]} 51. Ng3+ {[%emt 0:00:32]} Kf6 {[%emt 0:00:33]} 52. Ke4 {[%emt 0:05:22]} b5 {[%emt 0:01:13]} 53. Nf5 {[%emt 0:01:25]} g4 {[%emt 0:00:41]} 54. Nd6 {[%emt 0:00:32]} g3 {[%emt 0:00:58]} 55. Nxc4 {[%emt 0:00:29]} g2 {[%emt 0:00:13]} 56. Bc5 {[%emt 0:00:13]} bxc4 {[%emt 0:00:06]} 57. Bg1 {[%emt 0:00:40]} Ke7 {[%emt 0:00:20]} 58. Bc5+ {[%emt 0:04:49]} Kd7 {[%emt 0:00:07]} 59. Ba7 {[%emt 0:00:02]} c3 {[%emt 0:00:28]} 60. Kd3 {[%emt 0:00:18]} Kd6 {[%emt 0:00:06]} 61. Kxc3 {[%emt 0:00:30]} Kxd5 {[%emt 0:00:03]} 62. Kd3 {[%emt 0:00:24]} Kc6 {[%emt 0:03:26]} 1/2-1/2

[Event "1000GM Schev-A January 2024"]
[Site "Sunnyvale"]
[Date "2024.01.21"]
[Round "3.5"]
[White "Xia, Joshua"]
[Black "Perez Avendano, Paul Omar"]
[Result "0-1"]
[ECO "C84"]
[WhiteElo "1922"]
[BlackElo "2213"]
[Annotator "RC"]
[PlyCount "76"]
[EventDate "2024.01.20"]
[EventType "schev"]
[EventCountry "USA"]
[SourceTitle "playchess.com"]
[Source "ChessBase"]
[SourceQuality "1"]
[TimeControl "5400+30"]

1. e4 {[%emt 0:00:01]} e5 {[%emt 0:00:49]} 2. Nf3 {[%emt 0:00:18]} Nc6 {[%emt 0:00:08]} 3. Bb5 {[%emt 0:00:08]} a6 {[%emt 0:00:39]} 4. Ba4 {[%emt 0:02:30]} Nf6 {[%emt 0:02:23]} 5. O-O {[%emt 0:00:19]} b5 {[%emt 0:01:43]} 6. Bb3 {[%emt 0:00:34]} Be7 {[%emt 0:01:46]} 7. d3 {[%emt 0:04:29]} d6 {[%emt 0:01:02]} 8. a3 {[%emt 0:00:05]} O-O {[%emt 0:01:18]} 9. Nc3 {[%emt 0:00:07]} Bg4 {[%emt 0:01:17]} 10. Be3 {[%emt 0:01:22]} Na5 {[%emt 0:08:51]} 11. Ba2 {[%emt 0:00:09]} c5 {[%emt 0:00:31]} 12. Nd5 {[%emt 0:02:23]} Nc6 {[%emt 0:06:31]} 13. Nxf6+ {[%emt 0:05:12]} Bxf6 {[%emt 0:00:11]} 14. Bd5 {[%emt 0:00:20]} Rc8 {[%emt 0:00:30]} 15. h3 {[%emt 0:03:34]} Bh5 {[%emt 0:00:29]} 16. g4 {[%emt 0:01:14]} Bg6 {[%emt 0:00:07]} 17. Kg2 {[%emt 0:00:15]} h6 {[%emt 0:03:50]} 18. h4 {[%emt 0:02:23]} Nd4 {[%emt 0:13:51]} 19. h5 {[%emt 0:02:41]} Bh7 {[%emt 0:00:35]} 20. c3 {[%emt 0:02:07]} Ne6 {[%emt 0:01:02]} 21. g5 {[%emt 0:33:16]} Nxg5 {[%emt 0:02:12]} 22. Nh2 {[%emt 0:12:47]} Be7 {[%emt 0:02:33]} 23. f4 {[%emt 0:06:13]} exf4 {[%emt 0:00:44]} 24. Rxf4 {[%emt 0:00:27]} Kh8 {[%emt 0:00:38]} 25. Qf1 {[%emt 0:01:47]} Qd7 {[%emt 0:01:21]} 26. Kh1 {[%emt 0:18:49]} f5 {[%emt 0:03:02]} 27. Qg2 {[%emt 0:00:00]} fxe4 {[%emt 0:10:46]} 28. dxe4 {[%emt 0:00:00]} Rxf4 {[%emt 0:03:51]} 29. Bxf4 {[%emt 0:00:00]} Rf8 {[%emt 0:00:11]} 30. Be3 {[%emt 0:00:00]} Qe8 {[%emt 0:06:03]} 31. a4 {[%emt 0:00:00]} Qxh5 {[%emt 0:02:15]} 32. axb5 {[%emt 0:00:00]} axb5 {[%emt 0:00:31]} 33. e5 {[%emt 0:00:00]} dxe5 {[%emt 0:00:50]} 34. Ra7 {[%emt 0:00:00]} Qd1+ {[%emt 0:01:47]} 35. Bg1 {[%emt 0:00:00]} Nh3 {[%emt 0:08:39]} 36. Rxe7 {[%emt 0:02:25]} Nf2+ {[%emt 0:00:16]} 37. Qxf2 {[%emt 0:00:20]} Qxd5+ {[%emt 0:00:04]} 38. Nf3 {[%emt 0:00:21]} Rxf3 {[%emt 0:00:23]} 0-1

[Event "1000GM Schev-A January 2024"]
[Site "Sunnyvale"]
[Date "2024.01.21"]
[Round "4.1"]
[White "Diaz Cordoba, Fredy"]
[Black "Jasinski, Alexander"]
[Result "0-1"]
[ECO "A05"]
[WhiteElo "2240"]
[BlackElo "1951"]
[Annotator "RC"]
[PlyCount "112"]
[EventDate "2024.01.20"]
[EventType "schev"]
[EventCountry "USA"]
[SourceTitle "playchess.com"]
[Source "ChessBase"]
[SourceQuality "1"]
[TimeControl "5400+30"]

1. Nf3 {[%emt 0:03:15]} Nf6 {[%emt 0:00:14]} 2. g3 {[%emt 0:00:56]} g6 {[%emt 0:00:05]} 3. b3 {[%emt 0:00:07]} Bg7 {[%emt 0:00:04]} 4. Bb2 {[%emt 0:00:07]} d6 {[%emt 0:00:09]} 5. Bg2 {[%emt 0:00:21]} Nc6 {[%emt 0:00:11]} 6. O-O {[%emt 0:01:01]} O-O {[%emt 0:00:10]} 7. c4 {[%emt 0:01:11]} a6 {[%emt 0:02:43]} 8. d3 {[%emt 0:01:20]} Rb8 {[%emt 0:00:27]} 9. Nbd2 {[%emt 0:00:25]} e6 {[%emt 0:07:49]} 10. Rc1 {[%emt 0:06:28]} b6 {[%emt 0:03:24]} 11. a3 {[%emt 0:03:48]} Ne7 {[%emt 0:03:44]} 12. Rc2 {[%emt 0:02:51]} c5 {[%emt 0:04:53]} 13. Qa1 {[%emt 0:00:32]} Ne8 {[%emt 1:13:07]} 14. Bxg7 {[%emt 0:02:48]} Nxg7 {[%emt 0:00:30]} 15. Ne4 {[%emt 1:12:50]} Ne8 {[%emt 0:00:00]} 16. d4 {[%emt 0:00:00]} d5 {[%emt 0:00:00]} 17. Ned2 {[%emt 0:00:00]} cxd4 {[%emt 0:00:00]} 18. Qxd4 {[%emt 0:00:00]} Bb7 {[%emt 0:00:00]} 19. Qh4 {[%emt 0:00:00]} Qd6 {[%emt 0:00:00]} 20. b4 {[%emt 0:00:00]} Nf5 {[%emt 0:00:00]} 21. Qf4 {[%emt 0:00:00]} Qxf4 {[%emt 0:00:00]} 22. gxf4 {[%emt 0:00:00]} dxc4 {[%emt 0:00:00]} 23. Nxc4 {[%emt 0:00:00]} Be4 {[%emt 0:00:00]} 24. Rd2 {[%emt 0:00:00]} Nf6 {[%emt 0:00:00]} 25. Nfe5 {[%emt 0:00:00]} Bxg2 {[%emt 0:00:00]} 26. Kxg2 {[%emt 0:00:00]} Rfd8 {[%emt 0:00:00]} 27. Rfd1 {[%emt 0:00:00]} Rxd2 {[%emt 0:00:00]} 28. Rxd2 {[%emt 0:00:00]} b5 {[%emt 0:00:00]} 29. Nc6 {[%emt 0:00:00]} Rc8 {[%emt 0:00:00]} 30. N4a5 {[%emt 0:00:00]} Kf8 {[%emt 0:00:00]} 31. Rd3 {[%emt 0:00:00]} Nd5 {[%emt 0:00:00]} 32. Kf3 {[%emt 0:00:00]} Nb6 {[%emt 0:00:00]} 33. e4 {[%emt 0:01:21]} Ne7 {[%emt 0:00:00]} 34. Nd4 {[%emt 0:00:49]} Nc4 {[%emt 0:10:00]} 35. Nb7 {[%emt 0:00:18]} Nc6 {[%emt 0:00:00]} 36. Nxc6 {[%emt 0:03:12]} Rxc6 {[%emt 0:00:00]} 37. Nc5 {[%emt 0:00:36]} a5 {[%emt 0:00:00]} 38. Nd7+ {[%emt 0:00:24]} Ke7 {[%emt 0:00:00]} 39. bxa5 {[%emt 0:00:25]} Nxa5 {[%emt 0:00:00]} 40. e5 {[%emt 0:00:18]} Nc4 {[%emt 0:00:00]} 41. Nf6 {[%emt 0:00:14]} Rc7 {[%emt 0:00:00]} 42. Ng8+ {[%emt 0:00:18]} Kf8 {[%emt 0:00:00]} 43. Rd8+ {[%emt 0:00:38]} Kg7 {[%emt 0:00:00]} 44. Nf6 {[%emt 0:00:22]} Ra7 {[%emt 0:00:00]} 45. Rg8+ {[%emt 0:02:47]} Kh6 {[%emt 0:00:00]} 46. Kg4 {[%emt 0:00:47]} Ra4 {[%emt 0:00:00]} 47. Kh4 {[%emt 0:00:09]} Nxe5 {[%emt 0:00:00]} 48. Kg3 {[%emt 0:00:30]} Rxa3+ {[%emt 0:00:00]} 49. Kh4 {[%emt 0:01:13]} Nf3+ {[%emt 0:00:00]} 50. Kg3 {[%emt 0:01:03]} Nd4+ {[%emt 0:08:00]} 51. Kh4 {[%emt 0:01:00]} Nf5+ {[%emt 0:00:00]} 52. Kg4 {[%emt 0:00:05]} Rd3 {[%emt 0:00:00]} 53. f3 {[%emt 0:01:12]} b4 {[%emt 0:00:00]} 54. Ne4 {[%emt 0:01:49]} b3 {[%emt 0:00:00]} 55. Ng5 {[%emt 0:00:00]} Nd6 {[%emt 0:00:43]} 56. Rb8 {[%emt 0:00:06]} Kg7 {[%emt 0:00:30]} 0-1

[Event "1000GM Schev-A January 2024"]
[Site "Sunnyvale"]
[Date "2024.01.21"]
[Round "4.2"]
[White "Stopa, Jacek"]
[Black "Yao, Hanchi"]
[Result "1-0"]
[ECO "A53"]
[WhiteElo "2344"]
[BlackElo "1998"]
[Annotator "RC"]
[PlyCount "61"]
[EventDate "2024.01.20"]
[EventType "schev"]
[EventCountry "USA"]
[SourceTitle "playchess.com"]
[Source "ChessBase"]
[SourceQuality "1"]
[TimeControl "5400+30"]

1. c4 {[%emt 0:00:01]} Nf6 {[%emt 0:01:38]} 2. Nc3 {[%emt 0:00:06]} c6 {[%emt 1:29:52]} 3. e4 {[%emt 0:02:51]} e5 {[%emt 0:00:00]} 4. Nf3 {[%emt 0:02:19]} d6 {[%emt 0:00:00]} 5. d4 {[%emt 0:00:12]} Qc7 {[%emt 0:00:00]} 6. Be2 {[%emt 0:00:45]} Bg4 {[%emt 0:00:00]} 7. O-O {[%emt 0:01:32]} h6 {[%emt 0:00:00]} 8. Re1 {[%emt 0:01:43]} Nbd7 {[%emt 0:00:00]} 9. Be3 {[%emt 0:02:06]} Be7 {[%emt 0:00:00]} 10. h3 {[%emt 0:03:39]} Bh5 {[%emt 0:00:00]} 11. Qc2 {[%emt 0:04:10]} a5 {[%emt 0:00:00]} 12. Rad1 {[%emt 0:00:46]} O-O {[%emt 0:00:00]} 13. Nh4 {[%emt 0:00:27]} Bxe2 {[%emt 0:00:00]} 14. Rxe2 {[%emt 0:00:12]} Nh7 {[%emt 0:00:00]} 15. Nf5 {[%emt 0:01:03]} Bg5 {[%emt 0:00:00]} 16. d5 {[%emt 0:05:34]} Bxe3 {[%emt 0:00:00]} 17. Rxe3 {[%emt 0:00:07]} Nb6 {[%emt 0:00:00]} 18. Rg3 {[%emt 0:01:20]} Kh8 {[%emt 0:00:00]} 19. Rxg7 {[%emt 0:01:49]} Rg8 {[%emt 0:00:00]} 20. Rxg8+ {[%emt 0:01:26]} Rxg8 {[%emt 0:00:00]} 21. dxc6 {[%emt 0:00:16]} bxc6 {[%emt 0:00:00]} 22. Rxd6 {[%emt 0:00:45]} Nxc4 {[%emt 0:00:00]} 23. Rxh6 {[%emt 0:00:16]} f6 {[%emt 0:00:00]} 24. b3 {[%emt 0:00:43]} Nd6 {[%emt 0:00:00]} 25. Nd5 {[%emt 0:01:05]} Qf7 {[%emt 0:00:00]} 26. Nxf6 {[%emt 0:01:01]} Nxf5 {[%emt 0:00:00]} 27. Rxh7+ {[%emt 0:00:46]} Qxh7 {[%emt 0:00:00]} 28. Nxh7 {[%emt 0:00:05]} Nd4 {[%emt 0:00:00]} 29. Qd1 {[%emt 0:00:19]} Kxh7 {[%emt 0:00:00]} 30. Qh5+ {[%emt 0:00:05]} Kg7 {[%emt 0:00:00]} 31. Qxe5+ {[%emt 0:00:06]} 1-0

[Event "1000GM Schev-A January 2024"]
[Site "Sunnyvale"]
[Date "2024.01.21"]
[Round "4.4"]
[White "Chinni, Rishabh"]
[Black "Perez Avendano, Paul Omar"]
[Result "0-1"]
[ECO "C80"]
[WhiteElo "1939"]
[BlackElo "2213"]
[Annotator "RC"]
[PlyCount "108"]
[EventDate "2024.01.20"]
[EventType "schev"]
[EventCountry "USA"]
[SourceTitle "playchess.com"]
[Source "ChessBase"]
[SourceQuality "1"]
[TimeControl "5400+30"]

1. e4 {[%emt 0:00:01]} e5 {[%emt 0:01:45]} 2. Nf3 {[%emt 0:00:07]} Nc6 {[%emt 0:00:02]} 3. Bb5 {[%emt 0:00:12]} a6 {[%emt 0:01:17]} 4. Ba4 {[%emt 0:00:03]} Nf6 {[%emt 0:01:16]} 5. O-O {[%emt 0:00:06]} b5 {[%emt 0:02:11]} 6. Bb3 {[%emt 0:00:11]} Nxe4 {[%emt 0:01:36]} 7. d4 {[%emt 0:00:21]} d5 {[%emt 0:00:20]} 8. dxe5 {[%emt 0:00:18]} Be6 {[%emt 0:00:21]} 9. Nbd2 {[%emt 0:01:19]} Nc5 {[%emt 0:00:22]} 10. c3 {[%emt 0:00:58]} Nd3 {[%emt 0:07:09]} 11. Qe2 {[%emt 0:06:26]} Nxc1 {[%emt 0:00:25]} 12. Raxc1 {[%emt 0:00:05]} Bc5 {[%emt 0:07:24]} 13. Rfd1 {[%emt 0:03:27]} Qe7 {[%emt 0:14:13]} 14. Nf1 {[%emt 0:05:20]} Rd8 {[%emt 0:00:29]} 15. Nd4 {[%emt 0:02:42]} Nxd4 {[%emt 0:04:29]} 16. cxd4 {[%emt 0:00:07]} Bb6 {[%emt 0:00:11]} 17. a4 {[%emt 0:08:06]} Qb4 {[%emt 0:01:39]} 18. Qc2 {[%emt 0:09:47]} O-O {[%emt 0:02:31]} 19. Qc3 {[%emt 0:04:14]} Qxc3 {[%emt 0:04:48]} 20. Rxc3 {[%emt 0:00:42]} Bd7 {[%emt 0:04:19]} 21. axb5 {[%emt 0:09:48]} axb5 {[%emt 0:00:39]} 22. Ne3 {[%emt 0:14:15]} c6 {[%emt 0:00:52]} 23. Bc2 {[%emt 0:00:32]} g6 {[%emt 0:00:56]} 24. b4 {[%emt 0:00:52]} Ra8 {[%emt 0:01:48]} 25. f4 {[%emt 0:01:32]} Ra2 {[%emt 0:02:12]} 26. f5 {[%emt 0:14:46]} Kh8 {[%emt 0:12:37]} 27. Ng4 {[%emt 0:10:15]} Rxc2 {[%emt 0:01:59]} 28. Rxc2 {[%emt 0:00:05]} Bxf5 {[%emt 0:00:18]} 29. Rxc6 {[%emt 0:00:10]} Bxg4 {[%emt 0:00:13]} 30. Rd2 {[%emt 0:01:05]} Rb8 {[%emt 0:01:22]} 31. Kf2 {[%emt 0:00:21]} Bd7 {[%emt 0:01:31]} 32. Rd6 {[%emt 0:00:46]} Be6 {[%emt 0:00:26]} 33. Ke3 {[%emt 0:00:24]} Bd8 {[%emt 0:00:27]} 34. Rc2 {[%emt 0:02:05]} Bg5+ {[%emt 0:00:17]} 35. Kf2 {[%emt 0:00:50]} Be7 {[%emt 0:00:22]} 36. Ra6 {[%emt 0:02:22]} Bxb4 {[%emt 0:01:34]} 37. Ra7 {[%emt 0:00:15]} Bf8 {[%emt 0:00:26]} 38. Rca2 {[%emt 0:00:54]} b4 {[%emt 0:03:39]} 39. Ra8 {[%emt 0:00:25]} Rxa8 {[%emt 0:00:24]} 40. Rxa8 {[%emt 0:00:02]} Kg7 {[%emt 0:00:09]} 41. Rb8 {[%emt 0:00:12]} Bf5 {[%emt 0:00:21]} 42. Ke3 {[%emt 0:01:25]} h5 {[%emt 0:03:45]} 43. Kd2 {[%emt 0:01:38]} h4 {[%emt 0:01:08]} 44. g3 {[%emt 0:00:56]} h3 {[%emt 0:00:29]} 45. Kc1 {[%emt 0:02:33]} Be7 {[%emt 0:04:04]} 46. Kd2 {[%emt 0:00:00]} f6 {[%emt 0:05:25]} 47. exf6+ {[%emt 0:00:06]} Kxf6 {[%emt 0:00:11]} 48. Rb6+ {[%emt 0:00:15]} Kg5 {[%emt 0:00:33]} 49. Kd1 {[%emt 0:01:00]} Kg4 {[%emt 0:00:33]} 50. Ke2 {[%emt 0:00:31]} Bc2 {[%emt 0:01:14]} 51. Kd2 {[%emt 0:00:07]} b3 {[%emt 0:00:15]} 52. Kc3 {[%emt 0:00:16]} Kf3 {[%emt 0:00:39]} 53. Re6 {[%emt 0:00:25]} Bd8 {[%emt 0:00:51]} 54. Kb2 {[%emt 0:00:26]} Bc7 {[%emt 0:00:54]} 0-1